[Event "Titled Tuesday Blitz February 07 Late 2023"]
[White "Koziorowicz, Michal"]
[Black "Deac, Bogdan-Daniel"]
[WhiteFideId "21809194"]
[BlackFideId "1226380"]
[WhiteElo "2307"]
[BlackElo "2700"]
[Result "0-1"]
[Round "09"]
[TimeControl "180+2"]
[Date "2023.02.07"]
[WhiteClock "0:00:05"]
[BlackClock "0:00:04"]

1. e4 {[%clk 0:02:02]}  c6 {[%clk 0:02:55]} 2. d4 {[%clk 0:02:01]}  d5 {[%clk 0:02:54]} 3. e5 {[%clk 0:02:02]}  Bf5 {[%clk 0:02:54]} 4. h4 {[%clk 0:02:02]}  h5 {[%clk 0:02:53]} 5. Bg5 {[%clk 0:02:00]}  Qb6 {[%clk 0:02:53]} 6. Bd3 {[%clk 0:01:59]}  Bxd3 {[%clk 0:02:41]} 7. Qxd3 {[%clk 0:01:59]}  e6 {[%clk 0:02:42]} 8. Nd2 {[%clk 0:01:43]}  Ne7 {[%clk 0:02:38]} 9. Ne2 {[%clk 0:01:41]}  Nf5 {[%clk 0:02:38]} 10. O-O {[%clk 0:01:41]}  Nd7 {[%clk 0:02:27]} 11. c4 {[%clk 0:01:41]}  Qa6 {[%clk 0:02:16]} 12. Rfc1 {[%clk 0:01:36]}  Be7 {[%clk 0:02:06]} 13. Bxe7 {[%clk 0:01:32]}  Nxe7 {[%clk 0:02:05]} 14. b3 {[%clk 0:01:25]}  Nf5 {[%clk 0:02:05]} 15. Nf3 {[%clk 0:01:21]}  Rd8 {[%clk 0:01:26]} 16. Nf4 {[%clk 0:01:14]}  Nf8 {[%clk 0:01:22]} 17. Qc3 {[%clk 0:01:04]}  Ne7 {[%clk 0:01:15]} 18. a4 {[%clk 0:01:01]}  dxc4 {[%clk 0:01:04]} 19. bxc4 {[%clk 0:01:00]}  Nfg6 {[%clk 0:01:05]} 20. Nd3 {[%clk 0:01:00]}  b6 {[%clk 0:00:56]} 21. a5 {[%clk 0:00:58]}  Qb7 {[%clk 0:00:56]} 22. axb6 {[%clk 0:00:55]}  axb6 {[%clk 0:00:57]} 23. Rcb1 {[%clk 0:00:55]}  O-O {[%clk 0:00:56]} 24. Qb4 {[%clk 0:00:49]}  Nc8 {[%clk 0:00:48]} 25. Nc5 {[%clk 0:00:45]}  Qe7 {[%clk 0:00:42]} 26. Ne4 {[%clk 0:00:44]}  Nxh4 {[%clk 0:00:42]} 27. Qxe7 {[%clk 0:00:34]}  Nxf3+ {[%clk 0:00:41]} 28. gxf3 {[%clk 0:00:35]}  Nxe7 {[%clk 0:00:41]} 29. Nd6 {[%clk 0:00:36]}  Nf5 {[%clk 0:00:30]} 30. Nxf5 {[%clk 0:00:30]}  exf5 {[%clk 0:00:31]} 31. Rxb6 {[%clk 0:00:30]}  Rxd4 {[%clk 0:00:32]} 32. Rxc6 {[%clk 0:00:30]}  Rb8 {[%clk 0:00:32]} 33. Rc7 {[%clk 0:00:25]}  h4 {[%clk 0:00:18]} 34. Raa7 {[%clk 0:00:24]}  Rb1+ {[%clk 0:00:14]} 35. Kg2 {[%clk 0:00:20]}  Rdd1 {[%clk 0:00:13]} 36. f4 {[%clk 0:00:18]}  Rg1+ {[%clk 0:00:13]} 37. Kf3 {[%clk 0:00:19]}  h3 {[%clk 0:00:12]} 38. Rc8+ {[%clk 0:00:17]}  Kh7 {[%clk 0:00:12]} 39. Raa8 {[%clk 0:00:18]}  Rb3+ {[%clk 0:00:08]} 40. Ke2 {[%clk 0:00:18]}  Rc1 {[%clk 0:00:07]} 41. Rh8+ {[%clk 0:00:18]}  Kg6 {[%clk 0:00:07]} 42. Ra6+ {[%clk 0:00:18]}  f6 {[%clk 0:00:07]} 43. exf6 {[%clk 0:00:19]}  gxf6 {[%clk 0:00:06]} 44. Rf8 {[%clk 0:00:19]}  Kh5 {[%clk 0:00:05]} 45. Rfxf6 {[%clk 0:00:19]}  Rc2+ {[%clk 0:00:04]} 46. Kd1 {[%clk 0:00:19]}  Rxf2 {[%clk 0:00:04]} 47. Rh6+ {[%clk 0:00:18]}  Kg4 {[%clk 0:00:04]} 48. Rag6+ {[%clk 0:00:19]}  Kxf4 {[%clk 0:00:04]} 49. Rh4+ {[%clk 0:00:16]}  Ke5 {[%clk 0:00:04]} 50. Ke1 {[%clk 0:00:15]}  Ra2 {[%clk 0:00:04]} 51. Rg8 {[%clk 0:00:05]}  Rb1# {[%clk 0:00:04]} 0-1


[Site "https://www.chess.com"]

[Event "Titled Tuesday Blitz February 07 Late 2023"]
[White "Ramirez, Alejandro"]
[Black "Perske, Thore"]
[WhiteFideId "6500617"]
[BlackFideId "12902195"]
[WhiteElo "2572"]
[BlackElo "2448"]
[Result "0-1"]
[Round "09"]
[TimeControl "180+2"]
[Date "2023.02.07"]
[WhiteClock "0:00:01"]
[BlackClock "0:00:11"]

1. Nf3 {[%clk 0:03:00]}  Nf6 {[%clk 0:02:59]} 2. b3 {[%clk 0:02:59]}  d6 {[%clk 0:02:59]} 3. Bb2 {[%clk 0:02:59]}  e5 {[%clk 0:02:59]} 4. g3 {[%clk 0:03:00]}  g6 {[%clk 0:02:59]} 5. Bg2 {[%clk 0:02:56]}  Bg7 {[%clk 0:02:59]} 6. d4 {[%clk 0:02:57]}  e4 {[%clk 0:02:59]} 7. Nfd2 {[%clk 0:02:57]}  d5 {[%clk 0:02:59]} 8. O-O {[%clk 0:02:55]}  O-O {[%clk 0:02:59]} 9. c4 {[%clk 0:02:55]}  c6 {[%clk 0:02:59]} 10. b4 {[%clk 0:02:49]}  Re8 {[%clk 0:02:55]} 11. e3 {[%clk 0:02:49]}  h5 {[%clk 0:02:54]} 12. h3 {[%clk 0:02:35]}  Na6 {[%clk 0:02:42]} 13. b5 {[%clk 0:02:34]}  Nc7 {[%clk 0:02:34]} 14. bxc6 {[%clk 0:02:27]}  bxc6 {[%clk 0:02:34]} 15. Nc3 {[%clk 0:02:27]}  Ne6 {[%clk 0:02:29]} 16. cxd5 {[%clk 0:01:53]}  cxd5 {[%clk 0:02:29]} 17. Ba3 {[%clk 0:01:46]}  Ba6 {[%clk 0:02:01]} 18. Re1 {[%clk 0:01:44]}  Qa5 {[%clk 0:02:01]} 19. Bb2 {[%clk 0:01:43]}  h4 {[%clk 0:01:45]} 20. g4 {[%clk 0:01:37]}  Rec8 {[%clk 0:01:33]} 21. Rc1 {[%clk 0:01:34]}  Bf8 {[%clk 0:01:26]} 22. Nb3 {[%clk 0:01:32]}  Qb4 {[%clk 0:01:23]} 23. Ba1 {[%clk 0:01:07]}  Bd3 {[%clk 0:01:12]} 24. Nc5 {[%clk 0:00:46]}  Nxc5 {[%clk 0:00:56]} 25. dxc5 {[%clk 0:00:47]}  Rxc5 {[%clk 0:00:45]} 26. g5 {[%clk 0:00:47]}  Nh7 {[%clk 0:00:39]} 27. Qg4 {[%clk 0:00:22]}  Bg7 {[%clk 0:00:35]} 28. Nxd5 {[%clk 0:00:05]}  Rxd5 {[%clk 0:00:32]} 29. Rc8+ {[%clk 0:00:06]}  Rxc8 {[%clk 0:00:32]} 30. Qxc8+ {[%clk 0:00:07]}  Nf8 {[%clk 0:00:27]} 31. Rc1 {[%clk 0:00:03]}  Bxa1 {[%clk 0:00:25]} 32. Rxa1 {[%clk 0:00:04]}  Rxg5 {[%clk 0:00:20]} 33. Kh1 {[%clk 0:00:03]}  Qb2 {[%clk 0:00:18]} 34. Rg1 {[%clk 0:00:02]}  Qxa2 {[%clk 0:00:17]} 35. Qd8 {[%clk 0:00:03]}  Rf5 {[%clk 0:00:15]} 36. Qxh4 {[%clk 0:00:03]}  Qxf2 {[%clk 0:00:15]} 37. Qg4 {[%clk 0:00:03]}  Qxe3 {[%clk 0:00:14]} 38. h4 {[%clk 0:00:01]}  Qf4 {[%clk 0:00:13]} 39. Qh3 {[%clk 0:00:01]}  Rh5 {[%clk 0:00:11]} 0-1


[Site "https://www.chess.com"]

[Event "Titled Tuesday Blitz February 07 Late 2023"]
[White "Yanchenko, Roman"]
[Black "Preotu, Razvan"]
[WhiteFideId "4137329"]
[BlackFideId "2613280"]
[WhiteElo "2466"]
[BlackElo "2475"]
[Result "1-0"]
[Round "09"]
[TimeControl "180+2"]
[Date "2023.02.07"]
[WhiteClock "0:00:16"]
[BlackClock "0:00:02"]

1. d4 {[%clk 0:03:00]}  Nf6 {[%clk 0:02:59]} 2. Nf3 {[%clk 0:03:00]}  g6 {[%clk 0:02:59]} 3. c4 {[%clk 0:03:01]}  Bg7 {[%clk 0:02:59]} 4. Nc3 {[%clk 0:03:01]}  d5 {[%clk 0:02:58]} 5. e3 {[%clk 0:03:02]}  O-O {[%clk 0:02:58]} 6. b3 {[%clk 0:03:01]}  c5 {[%clk 0:02:56]} 7. Bb2 {[%clk 0:03:01]}  cxd4 {[%clk 0:02:54]} 8. Nxd4 {[%clk 0:03:01]}  e5 {[%clk 0:02:40]} 9. Nf3 {[%clk 0:03:01]}  d4 {[%clk 0:02:41]} 10. exd4 {[%clk 0:02:53]}  exd4 {[%clk 0:02:40]} 11. Qxd4 {[%clk 0:02:53]}  Qa5 {[%clk 0:02:19]} 12. O-O-O {[%clk 0:02:39]}  Ng4 {[%clk 0:02:09]} 13. b4 {[%clk 0:01:35]}  Bxd4 {[%clk 0:01:11]} 14. bxa5 {[%clk 0:01:35]}  Bxc3 {[%clk 0:01:11]} 15. Bxc3 {[%clk 0:01:36]}  Nxf2 {[%clk 0:01:11]} 16. Bd3 {[%clk 0:01:37]}  Nxh1 {[%clk 0:01:09]} 17. Rxh1 {[%clk 0:01:36]}  Nc6 {[%clk 0:01:08]} 18. Be4 {[%clk 0:01:36]}  Bf5 {[%clk 0:01:06]} 19. Bd5 {[%clk 0:01:36]}  Be6 {[%clk 0:00:58]} 20. Rd1 {[%clk 0:01:34]}  Rac8 {[%clk 0:00:35]} 21. Kb2 {[%clk 0:01:33]}  Bxd5 {[%clk 0:00:32]} 22. cxd5 {[%clk 0:01:33]}  Nb8 {[%clk 0:00:33]} 23. Ne5 {[%clk 0:01:30]}  f6 {[%clk 0:00:32]} 24. Nd3 {[%clk 0:01:16]}  Nd7 {[%clk 0:00:32]} 25. Nf4 {[%clk 0:01:16]}  Rfe8 {[%clk 0:00:31]} 26. d6 {[%clk 0:00:52]}  Rc5 {[%clk 0:00:24]} 27. Nd5 {[%clk 0:00:20]}  Re2+ {[%clk 0:00:24]} 28. Kb3 {[%clk 0:00:20]}  Kf7 {[%clk 0:00:21]} 29. Nxf6 {[%clk 0:00:17]}  Nxf6 {[%clk 0:00:21]} 30. Bxf6 {[%clk 0:00:16]}  Rb5+ {[%clk 0:00:05]} 31. Kc4 {[%clk 0:00:17]}  a6 {[%clk 0:00:02]} 32. d7 {[%clk 0:00:17]}  Rc2+ {[%clk 0:00:02]} 33. Kd3 {[%clk 0:00:17]}  Rcc5 {[%clk 0:00:01]} 34. d8=Q {[%clk 0:00:17]}  Rd5+ {[%clk 0:00:02]} 35. Kc3 {[%clk 0:00:15]}  Rxd8 {[%clk 0:00:02]} 36. Bxd8 {[%clk 0:00:16]}  Ke6 {[%clk 0:00:02]} 37. Bb6 {[%clk 0:00:16]} 1-0


[Site "https://www.chess.com"]

[Event "Titled Tuesday Blitz February 07 Late 2023"]
[White "Oganian, Miran"]
[Black "Herman, Daniel"]
[WhiteFideId "4122488"]
[BlackFideId "30935008"]
[WhiteElo "2439"]
[BlackElo "1956"]
[Result "1-0"]
[Round "09"]
[TimeControl "180+2"]
[Date "2023.02.07"]
[WhiteClock "0:01:11"]
[BlackClock "0:00:01"]

1. e4 {[%clk 0:03:00]}  e5 {[%clk 0:02:59]} 2. Nf3 {[%clk 0:02:58]}  Nc6 {[%clk 0:02:59]} 3. Nc3 {[%clk 0:02:59]}  Nf6 {[%clk 0:02:59]} 4. d4 {[%clk 0:02:59]}  exd4 {[%clk 0:02:58]} 5. Nxd4 {[%clk 0:03:00]}  Bb4 {[%clk 0:02:59]} 6. Nxc6 {[%clk 0:03:00]}  bxc6 {[%clk 0:02:58]} 7. Bd3 {[%clk 0:03:01]}  O-O {[%clk 0:02:58]} 8. O-O {[%clk 0:02:59]}  d5 {[%clk 0:02:58]} 9. exd5 {[%clk 0:02:58]}  Bg4 {[%clk 0:02:58]} 10. Be2 {[%clk 0:02:58]}  Bxe2 {[%clk 0:02:49]} 11. Nxe2 {[%clk 0:02:59]}  cxd5 {[%clk 0:02:45]} 12. c3 {[%clk 0:02:59]}  Bd6 {[%clk 0:02:38]} 13. Nd4 {[%clk 0:02:59]}  Qd7 {[%clk 0:02:28]} 14. Qf3 {[%clk 0:02:56]}  Ne4 {[%clk 0:02:05]} 15. Nf5 {[%clk 0:02:54]}  Be5 {[%clk 0:02:02]} 16. Rd1 {[%clk 0:02:52]}  Nf6 {[%clk 0:01:39]} 17. Bh6 {[%clk 0:02:43]}  gxh6 {[%clk 0:01:32]} 18. Re1 {[%clk 0:02:41]}  Ne4 {[%clk 0:01:19]} 19. Rad1 {[%clk 0:02:18]}  Ng5 {[%clk 0:01:08]} 20. Qg4 {[%clk 0:02:13]}  Kh8 {[%clk 0:00:59]} 21. Rxe5 {[%clk 0:02:11]}  c6 {[%clk 0:00:59]} 22. h4 {[%clk 0:02:05]}  Ne6 {[%clk 0:00:50]} 23. Nxh6 {[%clk 0:02:04]}  Rg8 {[%clk 0:00:41]} 24. Nxg8 {[%clk 0:02:03]}  Rxg8 {[%clk 0:00:42]} 25. Qf3 {[%clk 0:02:01]}  Qe7 {[%clk 0:00:41]} 26. h5 {[%clk 0:01:39]}  Qf8 {[%clk 0:00:27]} 27. g3 {[%clk 0:01:34]}  Qg7 {[%clk 0:00:25]} 28. Rf5 {[%clk 0:01:34]}  Ng5 {[%clk 0:00:24]} 29. Qg2 {[%clk 0:01:32]}  Ne4 {[%clk 0:00:22]} 30. Re1 {[%clk 0:01:29]}  Qg4 {[%clk 0:00:19]} 31. Rf4 {[%clk 0:01:27]}  Qxh5 {[%clk 0:00:19]} 32. Rh4 {[%clk 0:01:26]}  Qg6 {[%clk 0:00:19]} 33. Rf4 {[%clk 0:01:22]}  f5 {[%clk 0:00:19]} 34. Qh3 {[%clk 0:01:19]}  Rf8 {[%clk 0:00:19]} 35. c4 {[%clk 0:01:19]}  Rg8 {[%clk 0:00:10]} 36. Qxf5 {[%clk 0:01:17]}  Qg7 {[%clk 0:00:06]} 37. Rfxe4 {[%clk 0:01:12]}  dxe4 {[%clk 0:00:06]} 38. Qxe4 {[%clk 0:01:13]}  Qxb2 {[%clk 0:00:06]} 39. Qe5+ {[%clk 0:01:13]}  Qxe5 {[%clk 0:00:05]} 40. Rxe5 {[%clk 0:01:13]}  Rg4 {[%clk 0:00:04]} 41. Rc5 {[%clk 0:01:12]}  Rg6 {[%clk 0:00:04]} 42. Ra5 {[%clk 0:01:12]}  Rg4 {[%clk 0:00:05]} 43. c5 {[%clk 0:01:11]}  Rc4 {[%clk 0:00:05]} 44. Kg2 {[%clk 0:01:11]}  h5 {[%clk 0:00:03]} 45. Kh3 {[%clk 0:01:11]}  Kg8 {[%clk 0:00:01]} 46. f4 {[%clk 0:01:11]} 1-0


[Site "https://www.chess.com"]

[Event "Titled Tuesday Blitz February 07 Late 2023"]
[White "Klose, Eli"]
[Black "Harvey, Marcus R"]
[WhiteFideId "16242955"]
[BlackFideId "400092"]
[WhiteElo "1519"]
[BlackElo "2462"]
[Result "0-1"]
[Round "09"]
[TimeControl "180+2"]
[Date "2023.02.07"]
[WhiteClock "0:00:33"]
[BlackClock "0:01:09"]

1. e4 {[%clk 0:03:00]}  c5 {[%clk 0:02:57]} 2. Nc3 {[%clk 0:02:58]}  d6 {[%clk 0:02:57]} 3. g3 {[%clk 0:02:57]}  g6 {[%clk 0:02:57]} 4. d3 {[%clk 0:02:57]}  Bg7 {[%clk 0:02:57]} 5. Bg2 {[%clk 0:02:56]}  Nc6 {[%clk 0:02:57]} 6. f4 {[%clk 0:02:55]}  e6 {[%clk 0:02:56]} 7. Nf3 {[%clk 0:02:54]}  Nge7 {[%clk 0:02:57]} 8. O-O {[%clk 0:02:55]}  O-O {[%clk 0:02:57]} 9. Be3 {[%clk 0:02:55]}  Rb8 {[%clk 0:02:56]} 10. Qd2 {[%clk 0:02:55]}  b5 {[%clk 0:02:56]} 11. Nh4 {[%clk 0:02:53]}  b4 {[%clk 0:02:54]} 12. Nd1 {[%clk 0:02:54]}  f5 {[%clk 0:02:52]} 13. exf5 {[%clk 0:02:52]}  gxf5 {[%clk 0:02:53]} 14. Nf3 {[%clk 0:02:52]}  a5 {[%clk 0:02:38]} 15. Re1 {[%clk 0:02:52]}  h6 {[%clk 0:02:32]} 16. d4 {[%clk 0:02:51]}  c4 {[%clk 0:02:31]} 17. Bf2 {[%clk 0:02:36]}  Nd5 {[%clk 0:02:21]} 18. Ne3 {[%clk 0:02:27]}  c3 {[%clk 0:02:21]} 19. bxc3 {[%clk 0:02:24]}  bxc3 {[%clk 0:02:22]} 20. Qd1 {[%clk 0:02:21]}  Nce7 {[%clk 0:02:11]} 21. Nxd5 {[%clk 0:02:18]}  Nxd5 {[%clk 0:02:11]} 22. Nh4 {[%clk 0:02:19]}  Rb2 {[%clk 0:02:03]} 23. Bxd5 {[%clk 0:02:14]}  exd5 {[%clk 0:02:03]} 24. Qd3 {[%clk 0:02:14]}  Qc7 {[%clk 0:01:56]} 25. Ng6 {[%clk 0:02:08]}  Rf7 {[%clk 0:01:55]} 26. Re3 {[%clk 0:02:04]}  Kh7 {[%clk 0:01:55]} 27. Nh4 {[%clk 0:02:02]}  Qc4 {[%clk 0:01:52]} 28. Qxc4 {[%clk 0:01:44]}  dxc4 {[%clk 0:01:52]} 29. Rxc3 {[%clk 0:01:43]}  d5 {[%clk 0:01:53]} 30. Nf3 {[%clk 0:01:40]}  Bf8 {[%clk 0:01:44]} 31. a3 {[%clk 0:01:32]}  Rfb7 {[%clk 0:01:38]} 32. Re3 {[%clk 0:01:14]}  Bd7 {[%clk 0:01:35]} 33. Ne1 {[%clk 0:01:07]}  Bd6 {[%clk 0:01:32]} 34. Nf3 {[%clk 0:00:55]}  Rxc2 {[%clk 0:01:28]} 35. Ne5 {[%clk 0:00:55]}  Ba4 {[%clk 0:01:27]} 36. g4 {[%clk 0:00:52]}  Rbb2 {[%clk 0:01:25]} 37. Bg3 {[%clk 0:00:49]}  fxg4 {[%clk 0:01:16]} 38. Nxg4 {[%clk 0:00:46]}  h5 {[%clk 0:01:16]} 39. Nf6+ {[%clk 0:00:46]}  Kg6 {[%clk 0:01:17]} 40. Nxd5 {[%clk 0:00:42]}  Kf5 {[%clk 0:01:15]} 41. Nc3 {[%clk 0:00:35]}  Bc6 {[%clk 0:01:13]} 42. d5 {[%clk 0:00:35]}  Bc5 {[%clk 0:01:14]} 43. Re1 {[%clk 0:00:33]}  Rxc3 {[%clk 0:01:09]} 0-1


[Site "https://www.chess.com"]

[Event "Titled Tuesday Blitz February 07 Late 2023"]
[White "Timmermans, Mark"]
[Black "Averjanov, Alexey"]
[WhiteFideId "1026399"]
[BlackFideId "14109867"]
[WhiteElo "2392"]
[BlackElo "2399"]
[Result "1-0"]
[Round "09"]
[TimeControl "180+2"]
[Date "2023.02.07"]
[WhiteClock "0:00:20"]
[BlackClock "0:00:01"]

1. e4 {[%clk 0:02:59]}  c6 {[%clk 0:02:59]} 2. d4 {[%clk 0:02:59]}  d5 {[%clk 0:03:00]} 3. Nd2 {[%clk 0:02:59]}  dxe4 {[%clk 0:03:00]} 4. Nxe4 {[%clk 0:03:00]}  Bf5 {[%clk 0:03:01]} 5. Ng3 {[%clk 0:02:59]}  Bg6 {[%clk 0:03:01]} 6. Nf3 {[%clk 0:02:58]}  Nd7 {[%clk 0:03:02]} 7. h4 {[%clk 0:02:58]}  h6 {[%clk 0:03:02]} 8. h5 {[%clk 0:02:58]}  Bh7 {[%clk 0:03:03]} 9. Bd3 {[%clk 0:02:58]}  Bxd3 {[%clk 0:03:03]} 10. Qxd3 {[%clk 0:02:59]}  e6 {[%clk 0:03:04]} 11. Bf4 {[%clk 0:02:58]}  Ngf6 {[%clk 0:03:05]} 12. O-O-O {[%clk 0:02:57]}  Be7 {[%clk 0:03:06]} 13. Kb1 {[%clk 0:02:57]}  O-O {[%clk 0:03:06]} 14. Ne4 {[%clk 0:02:54]}  Nxe4 {[%clk 0:03:06]} 15. Qxe4 {[%clk 0:02:54]}  Nf6 {[%clk 0:03:07]} 16. Qe2 {[%clk 0:02:55]}  Qd5 {[%clk 0:03:08]} 17. g4 {[%clk 0:02:55]}  Qe4 {[%clk 0:03:06]} 18. Be3 {[%clk 0:02:53]}  Nxg4 {[%clk 0:02:55]} 19. Nd2 {[%clk 0:02:33]}  Qf5 {[%clk 0:02:55]} 20. Rhg1 {[%clk 0:02:29]}  Nxe3 {[%clk 0:02:53]} 21. fxe3 {[%clk 0:02:29]}  Kh8 {[%clk 0:02:47]} 22. Rdf1 {[%clk 0:02:21]}  Qd5 {[%clk 0:02:43]} 23. c4 {[%clk 0:02:17]}  Qd7 {[%clk 0:02:33]} 24. Nf3 {[%clk 0:02:15]}  Bf6 {[%clk 0:02:29]} 25. Qh2 {[%clk 0:02:08]}  Rg8 {[%clk 0:02:25]} 26. Rg2 {[%clk 0:02:05]}  c5 {[%clk 0:02:23]} 27. Ne5 {[%clk 0:01:58]}  Bxe5 {[%clk 0:02:07]} 28. Qxe5 {[%clk 0:01:58]}  cxd4 {[%clk 0:02:07]} 29. exd4 {[%clk 0:01:59]}  Rac8 {[%clk 0:02:04]} 30. b3 {[%clk 0:01:50]}  Rcd8 {[%clk 0:01:58]} 31. Rf4 {[%clk 0:01:42]}  f6 {[%clk 0:01:58]} 32. Qe2 {[%clk 0:01:41]}  Qf7 {[%clk 0:01:51]} 33. Rg6 {[%clk 0:01:38]}  Rd7 {[%clk 0:01:37]} 34. Re4 {[%clk 0:01:26]}  Rgd8 {[%clk 0:01:35]} 35. Rxe6 {[%clk 0:01:19]}  Rxd4 {[%clk 0:01:32]} 36. Re7 {[%clk 0:01:06]}  Rd1+ {[%clk 0:01:31]} 37. Kc2 {[%clk 0:01:00]}  R1d2+ {[%clk 0:01:29]} 38. Kc3 {[%clk 0:00:59]}  R8d3+ {[%clk 0:01:20]} 39. Kb4 {[%clk 0:00:59]}  Qf8 {[%clk 0:01:20]} 40. Qe6 {[%clk 0:00:48]}  Rd6 {[%clk 0:00:27]} 41. Qf7 {[%clk 0:00:47]}  Rb6+ {[%clk 0:00:22]} 42. Kc3 {[%clk 0:00:46]}  Qxf7 {[%clk 0:00:14]} 43. Rxf7 {[%clk 0:00:47]}  Rh2 {[%clk 0:00:12]} 44. Rfxg7 {[%clk 0:00:46]}  Rh3+ {[%clk 0:00:09]} 45. Kd4 {[%clk 0:00:24]}  Rd6+ {[%clk 0:00:08]} 46. Ke4 {[%clk 0:00:25]}  f5+ {[%clk 0:00:06]} 47. Kxf5 {[%clk 0:00:24]}  Rxg6 {[%clk 0:00:04]} 48. Rxg6 {[%clk 0:00:24]}  Rxh5+ {[%clk 0:00:03]} 49. Kg4 {[%clk 0:00:22]}  Rh2 {[%clk 0:00:03]} 50. a4 {[%clk 0:00:23]}  Kh7 {[%clk 0:00:02]} 51. Rd6 {[%clk 0:00:23]}  Kg8 {[%clk 0:00:01]} 52. Rd8+ {[%clk 0:00:23]}  Kf7 {[%clk 0:00:01]} 53. Rd7+ {[%clk 0:00:24]}  Ke6 {[%clk 0:00:02]} 54. Rxb7 {[%clk 0:00:25]}  a5 {[%clk 0:00:01]} 55. Rb5 {[%clk 0:00:20]}  Rb2 {[%clk 0:00:01]} 56. Kf4 {[%clk 0:00:20]} 1-0


[Site "https://www.chess.com"]

[Event "Titled Tuesday Blitz February 07 Late 2023"]
[White "Shapiro, Viktor"]
[Black "Fernandez Guillen, Ernesto J."]
[WhiteFideId "4175700"]
[BlackFideId "3512428"]
[WhiteElo "2192"]
[BlackElo "2477"]
[Result "0-1"]
[Round "09"]
[TimeControl "180+2"]
[Date "2023.02.07"]
[WhiteClock "0:00:21"]
[BlackClock "0:00:16"]

1. c4 {[%clk 0:03:00]}  e5 {[%clk 0:02:59]} 2. Nc3 {[%clk 0:03:01]}  Nc6 {[%clk 0:02:57]} 3. g3 {[%clk 0:03:01]}  f5 {[%clk 0:02:56]} 4. Bg2 {[%clk 0:03:01]}  Nf6 {[%clk 0:02:56]} 5. d3 {[%clk 0:03:01]}  d6 {[%clk 0:02:52]} 6. Nf3 {[%clk 0:03:01]}  h6 {[%clk 0:02:48]} 7. O-O {[%clk 0:03:01]}  g5 {[%clk 0:02:49]} 8. Rb1 {[%clk 0:02:59]}  Bg7 {[%clk 0:02:49]} 9. b4 {[%clk 0:02:59]}  O-O {[%clk 0:02:49]} 10. b5 {[%clk 0:02:58]}  Ne7 {[%clk 0:02:50]} 11. c5 {[%clk 0:02:59]}  Ng6 {[%clk 0:02:48]} 12. Qb3+ {[%clk 0:02:57]}  Kh8 {[%clk 0:02:46]} 13. cxd6 {[%clk 0:02:56]}  cxd6 {[%clk 0:02:47]} 14. Ba3 {[%clk 0:02:39]}  g4 {[%clk 0:02:31]} 15. Nd2 {[%clk 0:02:38]}  h5 {[%clk 0:02:32]} 16. Nc4 {[%clk 0:02:36]}  Be6 {[%clk 0:02:31]} 17. Qb4 {[%clk 0:02:36]}  d5 {[%clk 0:02:27]} 18. Nd6 {[%clk 0:02:26]}  Qd7 {[%clk 0:02:21]} 19. e4 {[%clk 0:02:23]}  dxe4 {[%clk 0:02:08]} 20. dxe4 {[%clk 0:02:22]}  f4 {[%clk 0:02:09]} 21. Rfd1 {[%clk 0:02:20]}  f3 {[%clk 0:02:08]} 22. Bf1 {[%clk 0:02:20]}  Qe7 {[%clk 0:02:06]} 23. Qa4 {[%clk 0:02:15]}  h4 {[%clk 0:02:01]} 24. Nf5 {[%clk 0:02:13]}  Qf7 {[%clk 0:02:01]} 25. Bxf8 {[%clk 0:02:11]}  Rxf8 {[%clk 0:02:02]} 26. Qxa7 {[%clk 0:02:03]}  hxg3 {[%clk 0:01:59]} 27. fxg3 {[%clk 0:01:56]}  Bxf5 {[%clk 0:01:44]} 28. exf5 {[%clk 0:01:56]}  Ne7 {[%clk 0:01:45]} 29. Qxb7 {[%clk 0:01:42]}  Re8 {[%clk 0:01:22]} 30. Ne4 {[%clk 0:01:32]}  Qh5 {[%clk 0:00:49]} 31. Nxf6 {[%clk 0:01:05]}  Bxf6 {[%clk 0:00:50]} 32. Rd6 {[%clk 0:00:58]}  Bg5 {[%clk 0:00:41]} 33. Qe4 {[%clk 0:00:54]}  Nxf5 {[%clk 0:00:36]} 34. Re1 {[%clk 0:00:54]}  f2+ {[%clk 0:00:24]} 35. Kxf2 {[%clk 0:00:53]}  Qxh2+ {[%clk 0:00:24]} 36. Bg2 {[%clk 0:00:54]}  Qxg3+ {[%clk 0:00:24]} 37. Kf1 {[%clk 0:00:52]}  Nxd6 {[%clk 0:00:22]} 38. Qe2 {[%clk 0:00:41]}  Rf8+ {[%clk 0:00:19]} 39. Kg1 {[%clk 0:00:41]}  Bf4 {[%clk 0:00:18]} 40. Qf2 {[%clk 0:00:20]}  Qxf2+ {[%clk 0:00:14]} 41. Kxf2 {[%clk 0:00:20]}  Bd2+ {[%clk 0:00:15]} 42. Ke2 {[%clk 0:00:21]}  Bxe1 {[%clk 0:00:15]} 43. Kxe1 {[%clk 0:00:21]}  Nxb5 {[%clk 0:00:16]} 0-1


[Site "https://www.chess.com"]

[Event "Titled Tuesday Blitz February 07 Late 2023"]
[White "Fisher_TheGalactic"]
[Black "Alex_Sahakyan2006"]
[WhiteElo "2561"]
[BlackElo "2733"]
[Result "1-0"]
[Round "09"]
[TimeControl "180+2"]
[Date "2023.02.07"]
[WhiteClock "0:00:22"]
[BlackClock "0:00:02"]

1. Nf3 {[%clk 0:03:00]}  c5 {[%clk 0:02:51]} 2. g3 {[%clk 0:03:00]}  b6 {[%clk 0:02:47]} 3. Bg2 {[%clk 0:03:00]}  Bb7 {[%clk 0:02:48]} 4. O-O {[%clk 0:03:00]}  Nf6 {[%clk 0:02:47]} 5. d3 {[%clk 0:03:00]}  d5 {[%clk 0:02:41]} 6. Nbd2 {[%clk 0:03:00]}  e6 {[%clk 0:02:39]} 7. b3 {[%clk 0:02:59]}  Be7 {[%clk 0:02:38]} 8. Bb2 {[%clk 0:02:59]}  O-O {[%clk 0:02:38]} 9. Re1 {[%clk 0:02:59]}  d4 {[%clk 0:02:37]} 10. e4 {[%clk 0:02:58]}  dxe3 {[%clk 0:02:32]} 11. fxe3 {[%clk 0:02:58]}  Nbd7 {[%clk 0:02:29]} 12. e4 {[%clk 0:02:58]}  b5 {[%clk 0:02:12]} 13. Qe2 {[%clk 0:02:56]}  Qb6 {[%clk 0:02:09]} 14. Kh1 {[%clk 0:02:55]}  Rac8 {[%clk 0:02:01]} 15. a4 {[%clk 0:02:50]}  a6 {[%clk 0:01:56]} 16. axb5 {[%clk 0:02:30]}  axb5 {[%clk 0:01:57]} 17. Ne5 {[%clk 0:02:23]}  Nxe5 {[%clk 0:01:55]} 18. Bxe5 {[%clk 0:02:24]}  Nd7 {[%clk 0:01:52]} 19. Bb2 {[%clk 0:02:24]}  e5 {[%clk 0:01:38]} 20. Bh3 {[%clk 0:02:21]}  f5 {[%clk 0:01:35]} 21. Bg2 {[%clk 0:02:09]}  f4 {[%clk 0:01:30]} 22. Bh3 {[%clk 0:02:06]}  Rcd8 {[%clk 0:01:18]} 23. Bxd7 {[%clk 0:01:51]}  Rxd7 {[%clk 0:01:16]} 24. Bxe5 {[%clk 0:01:51]}  fxg3 {[%clk 0:01:10]} 25. Bxg3 {[%clk 0:01:49]}  Qh6 {[%clk 0:00:59]} 26. Rf1 {[%clk 0:01:39]}  Bf6 {[%clk 0:00:54]} 27. Rad1 {[%clk 0:01:36]}  Rdf7 {[%clk 0:00:49]} 28. Bd6 {[%clk 0:01:33]}  Rc8 {[%clk 0:00:27]} 29. Qg4 {[%clk 0:01:17]}  Rd8 {[%clk 0:00:21]} 30. Bf4 {[%clk 0:01:14]}  Qg6 {[%clk 0:00:16]} 31. Qxg6 {[%clk 0:01:14]}  hxg6 {[%clk 0:00:17]} 32. Be3 {[%clk 0:01:12]}  Rc7 {[%clk 0:00:15]} 33. Kg1 {[%clk 0:01:04]}  Bc3 {[%clk 0:00:11]} 34. Nf3 {[%clk 0:01:00]}  c4 {[%clk 0:00:11]} 35. Bb6 {[%clk 0:00:53]}  Rdc8 {[%clk 0:00:06]} 36. Bxc7 {[%clk 0:00:53]}  Rxc7 {[%clk 0:00:07]} 37. dxc4 {[%clk 0:00:52]}  bxc4 {[%clk 0:00:08]} 38. Rd8+ {[%clk 0:00:52]}  Kh7 {[%clk 0:00:07]} 39. Ng5+ {[%clk 0:00:52]}  Kh6 {[%clk 0:00:08]} 40. Nf7+ {[%clk 0:00:47]}  Kh5 {[%clk 0:00:08]} 41. h3 {[%clk 0:00:37]}  Kh4 {[%clk 0:00:08]} 42. Kh2 {[%clk 0:00:34]}  Rc8 {[%clk 0:00:04]} 43. Rxc8 {[%clk 0:00:31]}  Bxc8 {[%clk 0:00:05]} 44. bxc4 {[%clk 0:00:30]}  g5 {[%clk 0:00:04]} 45. Rf3 {[%clk 0:00:24]}  Bd4 {[%clk 0:00:03]} 46. Rd3 {[%clk 0:00:23]}  Bc5 {[%clk 0:00:02]} 47. e5 {[%clk 0:00:22]} 1-0


[Site "https://www.chess.com"]